bitfinex/quotes_ETHUSD_20250916
["timestamp","ask_amount","ask_price","bid_price","bid_amount"]
[1757987270628,1e-08,4542.3,4542.2,7.37345176]
[1757987271033,1e-08,4542.3,4542.2,21.87345176]
[1757987271349,1e-08,4542.3,4542.2,18.20545176]
[1757987271527,0.48070001,4542.3,4542.2,21.87345176]
[1757987271847,1e-08,4542.3,4542.2,21.87345176]
[1757987273698,1e-08,4542.3,4542.2,17.25647168]
[1757987273699,0.48070001,4542.3,4542.2,17.25647168]
[1757987273857,0.82120001,4542.3,4542.2,17.25647168]
[1757987274163,0.82120001,4542.3,4542.2,20.92447168]
[1757987274714,0.48070001,4542.3,4542.2,17.25647168]
[1757987274941,0.82120001,4542.3,4542.2,6.42447168]
[1757987276442,0.82120001,4542.3,4542.2,2.75647168]
[1757987276755,0.48070001,4542.3,4542.2,6.42447168]
[1757987277751,0.48070001,4542.3,4542.2,2.20157632]
[1757987277956,0.82120001,4542.3,4542.2,2.20157632]
[1757987278363,0.82120001,4542.3,4542.1,2.20262433]
[1757987278519,1e-08,4542.3,4542.2,2.20157632]
[1757987279046,0.83600001,4542.3,4542.2,2.20157632]
[1757987280444,0.83600001,4542.3,4542.1,0.001]
[1757987280659,0.49550001,4542.3,4542.2,2.20157632]
[1757987280834,0.49550001,4542.3,4542.1,2.20262371]
[1757987281029,0.4955,4542.2,4542.1,0.001]
[1757987281241,0.836,4542.2,4542.1,0.001]
[1757987281444,0.935,4542.2,4542.1,0.001]
[1757987283072,5.395,4542.2,4542.1,0.001]
[1757987283233,5.0545,4542.2,4542.1,0.001]
[1757987283427,5.3926,4542.2,4542.1,0.001]
[1757987284042,0.099,4542.2,4542.1,2.20262479]
[1757987285267,0.9326,4542.2,4542.1,0.001]
[1757987286274,6.80757166,4542.2,4542.1,0.001]
[1757987286579,9.80757166,4542.2,4542.1,0.001]
[1757987287670,9.80757166,4542.2,4542.1,2.20262479]
[1757987287671,4.3865,4542.2,4542.1,2.20262479]
[1757987288036,3.5945,4542.2,4542.1,2.20262479]
[1757987288268,3.5945,4542.2,4542.1,2.67572479]
[1757987288269,3.0,4542.2,4542.1,2.67572479]
[1757987288446,3.0,4542.2,4542.1,3.40552479]
[1757987288644,0.002,4542.4,4542.2,2.20157632]
[1757987288954,3.0,4542.3,4542.2,3.11397632]
[1757987289130,3.0,4542.3,4542.2,2.20157632]
[1757987289332,0.1096,4542.2,4542.1,2.20261225]
[1757987289536,0.6051,4542.2,4542.1,2.20261225]
[1757987289760,0.7088,4542.2,4542.1,2.20261225]
[1757987289933,0.2133,4542.2,4542.1,2.20261225]
[1757987291768,0.1096,4542.2,4542.1,2.20261225]
[1757987292974,0.1096,4542.2,4542.1,3.40551225]
[1757987295371,0.2086,4542.2,4542.1,2.20261225]
[1757987295772,0.2086,4542.2,4542.1,2.20262479]
[1757987295949,0.1096,4542.2,4542.1,2.20262479]
[1757987296371,0.1096,4542.2,4542.1,2.96622479]
[1757987296563,0.1096,4542.2,4542.1,3.40552479]
[1757987298891,0.1096,4542.2,4542.1,2.67572479]
[1757987299070,0.1096,4542.2,4542.1,2.20262479]
[1757987299415,9.91717166,4542.2,4542.1,0.001]
[1757987299570,12.4237517,4542.2,4542.1,0.001]
[1757987301496,10.22217538,4542.2,4542.1,0.001]
[1757987301795,9.91717166,4542.2,4542.1,0.001]
[1757987302919,0.002,4542.4,4542.1,3.39712479]
[1757987303214,0.002,4542.4,4542.3,2.20152786]
[1757987303676,0.002,4542.4,4542.3,2.48962786]
[1757987303881,0.002,4542.4,4542.3,3.39602786]
[1757987306912,0.002,4542.4,4542.3,17.89602786]
[1757987308174,0.002,4542.4,4542.3,17.44622786]
[1757987308373,0.002,4542.4,4542.3,17.89602786]
[1757987309097,0.002,4542.4,4542.3,3.39602786]
[1757987310273,0.002,4542.4,4542.3,2.94622786]
[1757987310486,0.002,4542.4,4542.3,2.20152786]
[1757987313913,0.101,4542.4,4542.3,2.20152786]
[1757987317698,0.002,4542.4,4542.3,2.20152786]
[1757987318019,3.681,4542.4,4542.3,2.65812786]
[1757987319419,3.78,4542.4,4542.3,2.20152786]
[1757987320149,3.78,4542.4,4542.1,0.001]
[1757987320357,3.78,4542.4,4542.3,2.20152786]
[1757987320823,0.1096,4542.3,4542.1,0.001]
[1757987321331,0.5859,4542.2,4542.1,0.001]
[1757987321543,0.5859,4542.2,4542.1,2.20262479]
[1757987321956,0.1014,4542.2,4542.1,2.20262479]
[1757987323952,3.1096,4542.3,4542.1,2.20262479]
[1757987324458,0.099,4542.2,4542.1,2.20262479]
[1757987326842,0.099,4542.2,4542.1,0.001]
[1757987327044,0.5835,4542.2,4542.1,0.001]
[1757987327246,4.72083054,4542.2,4542.1,0.001]
[1757987327632,3.891,4542.2,4542.1,0.001]
[1757987328571,4.7136,4542.2,4542.1,0.001]
[1757987331069,4.3755,4542.2,4542.1,0.001]
[1757987331750,3.891,4542.2,4542.1,0.001]
[1757987332249,23.62035537,4542.2,4542.1,0.001]
[1757987332604,26.5909556,4542.2,4542.1,0.001]
[1757987332761,30.82910932,4542.2,4542.1,0.001]
[1757987332963,34.50610932,4542.2,4542.1,0.001]
[1757987333169,45.92837932,4542.2,4542.1,0.001]
[1757987333384,27.4487756,4542.2,4542.1,0.001]
[1757987333592,22.6356166,4542.2,4542.1,0.001]
[1757987334152,29.5516836,4542.2,4542.1,0.001]
[1757987334483,23.9321546,4542.2,4542.1,0.001]
[1757987334891,28.17030832,4542.2,4542.1,0.001]
[1757987335093,23.9321546,4542.2,4542.1,0.001]
[1757987335386,40.3971236,4542.2,4542.1,0.001]
[1757987335765,38.1378636,4542.2,4542.1,0.001]
[1757987336152,41.6902256,4542.2,4542.1,0.001]
[1757987336558,45.92793852,4542.2,4542.1,0.001]
[1757987338199,15.92793852,4542.2,4542.1,0.001]
[1757987338579,45.92793852,4542.2,4542.1,0.001]
[1757987339095,46.27334918,4542.2,4542.1,0.001]
[1757987341298,34.58174118,4542.2,4542.1,0.001]
[1757987342180,30.34358746,4542.2,4542.1,0.001]
[1757987342514,41.50217746,4542.2,4542.1,0.001]
[1757987342812,41.16407746,4542.2,4542.1,0.001]
[1757987343019,38.39819146,4542.2,4542.1,0.001]
[1757987343215,37.83305646,4542.2,4542.1,0.001]
[1757987343419,39.41740546,4542.2,4542.1,0.001]
[1757987343809,43.65555918,4542.2,4542.1,0.001]
[1757987344011,43.99365918,4542.2,4542.1,0.001]
[1757987344506,15.29517246,4542.2,4542.1,0.001]
[1757987344706,18.14490646,4542.2,4542.1,0.001]
[1757987345494,11.26498446,4542.2,4542.1,0.001]
[1757987345686,10.11443396,4542.2,4542.1,1.2642]
[1757987345889,7.76132456,4542.2,4542.1,1.2642]
[1757987346287,5.93315372,4542.4,4542.1,1.2642]
[1757987346510,5.93315372,4542.4,4542.2,0.9657]
[1757987346511,3.676,4542.3,4542.2,0.9657]
[1757987346713,3.1096,4542.2,4542.1,0.001]
[1757987347291,0.1096,4542.2,4542.1,1.2642]
[1757987347692,3.1096,4542.2,4542.1,3.46582479]
[1757987348001,3.1096,4542.2,4542.1,1.2642]
[1757987349312,6.7856,4542.2,4542.1,1.2642]
[1757987351996,6.7876,4542.2,4542.1,1.2642]
[1757987352197,6.7866,4542.2,4542.1,1.2642]
[1757987353626,6.7866,4542.2,4542.1,3.46582479]
[1757987355333,0.1116,4542.2,4542.1,4.03267901]
[1757987355726,3.7856,4542.2,4542.1,4.03267901]
[1757987358857,3.7856,4542.2,4542.1,18.53267901]
[1757987360651,0.1116,4542.2,4542.1,18.53267901]
[1757987360830,3.7856,4542.2,4542.1,18.53267901]
[1757987362154,3.7856,4542.2,4542.1,4.03267901]
[1757987362763,3.7856,4542.2,4542.1,18.53267901]
[1757987363176,3.7856,4542.2,4542.1,0.001]
[1757987363177,3.8846,4542.2,4542.1,0.001]
[1757987363490,8.1695,4542.2,4542.1,0.001]
[1757987363947,10.37107632,4542.2,4542.1,0.001]
[1757987364268,8.1695,4542.2,4542.1,0.001]
[1757987364465,10.37107632,4542.2,4542.1,0.001]
[1757987364673,10.70917632,4542.2,4542.1,0.001]
[1757987367186,10.37107632,4542.2,4542.1,0.001]
[1757987367542,44.94733004,4542.2,4542.1,0.001]
[1757987367784,45.75080231,4542.2,4542.1,0.001]
[1757987368100,45.83911491,4542.2,4542.1,0.001]
[1757987368390,46.04495862,4542.2,4542.1,0.001]
[1757987369683,41.4687049,4542.2,4542.1,0.001]
[1757987369868,16.66885562,4542.2,4542.1,0.001]
[1757987370075,20.68395562,4542.2,4542.1,0.001]
[1757987370572,30.38881162,4542.2,4542.1,0.001]
[1757987371283,29.47081662,4542.2,4542.1,0.001]
[1757987371685,30.92265162,4542.2,4542.1,0.001]
[1757987372265,29.80971062,4542.2,4542.1,0.001]
[1757987372465,26.60971062,4542.2,4542.1,0.001]
[1757987372780,25.72571062,4542.2,4542.1,0.001]
[1757987373886,34.23393562,4542.2,4542.1,0.001]
[1757987374089,38.47208934,4542.2,4542.1,0.001]
[1757987374255,38.91181342,4542.2,4542.1,0.001]
[1757987374764,50.61623642,4542.2,4542.1,0.001]
[1757987375402,2.99372174,4541.9,4541.8,0.001]
[1757987375710,49.53216719,4541.9,4541.8,0.001]
[1757987375870,51.14227686,4541.9,4541.8,0.001]
[1757987376070,51.37015938,4541.9,4541.8,0.001]
[1757987377000,51.37013128,4541.9,4541.8,0.001]
[1757987377699,2.2018187,4541.7,4540.3,0.001]
[1757987377874,0.792,4541.0,4540.3,0.001]
[1757987378073,32.12794847,4540.9,4540.3,0.001]
[1757987378301,32.12415736,4540.9,4540.3,0.001]
[1757987378599,32.21237723,4540.9,4540.3,0.001]
[1757987378774,38.78922001,4540.9,4540.3,0.4675]
[1757987378980,38.44971701,4540.9,4540.3,0.4675]
[1757987379300,37.48944201,4540.9,4540.3,0.001]
[1757987379795,17.94872601,4540.9,4540.3,0.001]
[1757987380195,41.12530201,4540.9,4540.3,0.001]
[1757987380378,43.19552801,4540.9,4540.3,0.001]
[1757987380987,48.21151891,4540.9,4540.3,0.001]
[1757987382101,48.29422091,4540.9,4540.3,0.001]
[1757987382301,47.82004037,4540.9,4540.3,0.001]
[1757987383787,17.82004037,4540.9,4540.3,0.001]
[1757987384187,17.69653466,4540.9,4540.3,0.001]
[1757987384390,47.69653466,4540.9,4540.3,0.001]
[1757987385175,2.99444912,4540.4,4540.3,0.001]
[1757987385393,44.76561955,4540.4,4540.3,0.001]
[1757987385597,43.64370355,4540.4,4540.3,0.001]
[1757987385804,43.73205517,4540.4,4540.3,0.001]
[1757987386118,46.23630407,4540.4,4540.3,0.001]
[1757987386416,46.01662839,4540.4,4540.3,0.001]
[1757987386619,45.68552839,4540.4,4540.3,0.001]
[1757987388276,45.89074528,4540.4,4540.3,0.001]
[1757987388480,46.3449791,4540.4,4540.3,0.001]
[1757987388784,46.0138791,4540.4,4540.3,0.001]
[1757987389191,46.48672546,4540.4,4540.3,0.001]
[1757987389406,46.83226535,4540.4,4540.3,0.001]
[1757987393410,47.03780739,4540.4,4540.3,0.001]
[1757987394108,5.9949343,4539.4,4539.0,0.4766]
[1757987394309,42.45056761,4539.4,4539.0,0.4766]
[1757987394611,44.75814497,4539.4,4539.0,0.4766]
[1757987394806,45.1037504,4539.4,4537.1,14.52]
[1757987395006,45.1037504,4539.4,4538.9,0.4618]
[1757987395208,47.9266214,4539.4,4538.9,0.4618]
[1757987395406,48.4032214,4539.4,4538.9,0.4618]
[1757987396307,48.51179536,4539.4,4538.9,0.4618]
[1757987397007,43.83997536,4539.4,4538.9,0.4618]
[1757987397381,44.93839993,4539.4,4538.9,0.4618]
[1757987398190,45.28400701,4539.4,4538.9,0.4618]
[1757987398391,48.51179701,4539.4,4538.9,0.4618]
[1757987399117,48.51179701,4539.4,4538.8,0.5395]
[1757987399118,48.96299701,4539.4,4538.8,0.081]
[1757987399688,5.99503137,4539.2,4539.1,1e-08]
[1757987399901,40.68207418,4539.2,4539.1,1e-08]
[1757987400086,41.44787418,4539.2,4539.1,1e-08]
[1757987400809,40.99667418,4539.2,4539.1,1e-08]
[1757987401332,10.99667418,4539.2,4539.1,1e-08]
[1757987401560,40.99667418,4539.2,4539.1,1e-08]
[1757987402025,40.9966794,4539.2,4539.1,1e-08]
[1757987402417,41.5394794,4539.2,4539.1,1e-08]
[1757987403210,5.99512844,4539.0,4538.8,0.081]
[1757987403430,43.50523629,4538.9,4538.8,0.081]
[1757987403627,44.8868617,4538.9,4538.8,0.081]
[1757987404018,45.80035771,4538.9,4538.8,0.081]
[1757987404330,2.99537115,4538.5,4538.3,0.4618]
[1757987404535,46.79160247,4538.5,4538.3,0.4618]
[1757987404732,47.26444883,4538.5,4538.3,0.4618]
[1757987404946,45.68840983,4538.5,4538.4,0.3173]
[1757987405109,29.74943483,4538.5,4538.4,1.2376]
[1757987405435,25.92708083,4538.5,4538.4,1.2376]
[1757987405645,30.06888083,4538.5,4538.4,1.2376]
[1757987406460,30.06900531,4538.5,4538.4,1.2376]
[1757987406608,17.72737331,4538.5,4538.4,0.001]
[1757987406808,46.20957031,4538.5,4538.4,0.001]
[1757987407132,32.93793031,4538.5,4538.4,0.7791]
[1757987407333,33.53031517,4538.5,4538.4,0.7791]
[1757987407505,46.52576817,4538.5,4538.4,0.7791]
[1757987407704,35.66475417,4538.5,4538.4,0.7791]
[1757987408504,18.31875817,4538.5,4538.4,0.7791]
[1757987408751,34.18153831,4538.5,4538.4,1.2376]
[1757987409722,40.39307831,4538.5,4538.4,1.2376]
[1757987409924,40.14758131,4538.5,4538.4,1.2376]
[1757987410243,36.09121131,4538.5,4538.4,1.2376]
[1757987410430,36.09121131,4538.5,4538.4,0.7791]
[1757987410740,43.98394531,4538.5,4538.4,0.7791]
[1757987410936,41.10870031,4538.5,4538.4,0.7791]
[1757987411242,38.49780331,4538.5,4538.4,0.7791]
[1757987411835,43.08205831,4538.5,4538.4,0.7791]
[1757987412901,43.08205831,4538.5,4538.1,0.021]
[1757987412902,2.99551681,4538.2,4538.1,0.021]
[1757987413183,40.22079615,4538.2,4538.1,0.021]
[1757987413336,41.24279973,4538.2,4538.1,0.021]
[1757987413535,41.44873277,4538.2,4538.1,0.021]
[1757987413754,41.53713496,4538.2,4538.1,0.021]
[1757987414085,41.98833496,4538.2,4538.1,0.021]
[1757987415372,41.53713496,4538.2,4538.1,0.021]
[1757987416080,41.31904099,4538.2,4538.1,0.021]
[1757987417600,41.31904099,4538.2,4538.1,1e-08]
[1757987417906,41.77024099,4538.2,4538.1,1e-08]
[1757987418306,2.99580818,4537.6,4537.5,0.4618]
[1757987418600,46.79016398,4537.6,4537.5,0.4618]
[1757987418800,47.26301034,4537.6,4537.5,1.2366]
[1757987418966,47.60873915,4537.6,4537.5,1.2366]
[1757987419160,5.99600246,4537.2,4537.1,0.4785]
[1757987419504,44.72488853,4537.2,4537.1,0.02]
[1757987419670,45.44508189,4537.2,4537.1,0.7981]
[1757987419869,39.43366789,4537.2,4537.1,1.2566]
[1757987420098,34.05597946,4537.2,4537.1,1.2566]
[1757987420402,34.1796301,4537.2,4537.1,1.2566]
[1757987420604,41.1796301,4537.2,4537.1,1.2566]
[1757987420806,35.0391411,4537.2,4537.1,1.2566]
[1757987420976,28.1870821,4537.2,4537.1,1.2566]
[1757987421776,29.4859501,4537.2,4537.1,1.2566]
[1757987423001,7.355909,4537.2,4537.1,1.2566]
[1757987423567,7.70163743,4537.2,4537.1,1.2566]
[1757987423792,8.49363743,4537.2,4537.1,1.2566]
[1757987424991,4.81663743,4537.2,4537.1,1.39126]
[1757987425190,3.677,4537.2,4537.1,3.59531104]
[1757987426361,4.695,4537.6,4537.2,2.20400246]
[1757987426562,3.0,4537.4,4537.2,3.15050246]
[1757987426800,0.792,4537.5,4537.4,2.2038635]
[1757987427005,4.47,4537.5,4537.4,2.5005635]
[1757987427204,7.47,4537.5,4537.4,3.4470635]
[1757987427809,3.0,4537.5,4537.4,4.0276361]
[1757987428024,6.678,4537.5,4537.4,4.0276361]
[1757987429612,3.0,4537.5,4537.4,4.0276361]
[1757987429811,6.677,4537.5,4537.4,4.0276361]
[1757987432222,1.695,4537.6,4537.5,2.20385674]
[1757987432420,5.374,4537.6,4537.5,5.22570998]
[1757987432626,0.002,4538.2,4537.5,5.22570998]
[1757987432627,0.002,4538.2,4537.5,3.31855324]
[1757987432806,0.1096,4537.8,4537.6,0.9465]
[1757987433017,3.679,4537.7,4537.6,2.20380818]
[1757987433418,3.679,4537.7,4537.6,17.00050818]
[1757987433601,3.679,4537.7,4537.6,19.92550193]
[1757987441209,0.1096,4537.8,4537.7,2.20375961]
[1757987441542,3.7866,4538.0,4537.9,2.20366248]
[1757987441753,0.002,4538.2,4537.9,5.51046903]
[1757987442041,0.002,4538.2,4538.1,2.20356536]
[1757987442205,0.002,4538.2,4538.1,3.35132514]
[1757987442407,0.002,4538.2,4538.1,4.59452514]
[1757987443659,0.002,4538.2,4538.1,19.09452514]
[1757987450825,0.002,4539.1,4538.2,2.20351681]
[1757987451040,0.002,4539.1,4538.6,4.35483241]
[1757987451268,0.002,4539.1,4538.6,11.33733826]
[1757987451455,0.002,4539.1,4538.6,12.24623826]
[1757987451770,0.002,4539.1,4538.6,26.74623826]
[1757987458069,1e-08,4539.1,4539.0,2.20312844]
[1757987458276,1e-08,4539.1,4539.0,10.25699213]
[1757987458456,1e-08,4539.1,4539.0,12.70998004]
[1757987461669,1e-08,4539.1,4539.0,27.20998004]
[1757987462054,0.09900001,4539.1,4539.0,21.73474763]
[1757987463172,1e-08,4539.1,4539.0,22.04864763]
[1757987463476,1e-08,4539.1,4539.0,27.20898004]
[1757987463678,1e-08,4539.1,4539.0,22.96374763]
[1757987471675,1e-08,4539.1,4539.0,27.20898004]
[1757987471874,1e-08,4539.9,4539.4,2.2029343]
[1757987472075,1e-08,4539.9,4539.8,6.44797261]
[1757987472277,1e-08,4539.9,4539.8,10.43587261]
[1757987472451,1e-08,4539.9,4539.8,11.35097261]
[1757987472651,1e-08,4539.9,4539.8,7.1057402]
[1757987472865,1e-08,4539.9,4539.8,11.56065714]
[1757987473075,1e-08,4539.9,4539.8,11.07485714]
[1757987474286,0.09900001,4539.9,4539.8,11.07485714]
[1757987474487,0.57280001,4539.9,4539.8,3.15562473]
[1757987474685,0.91090001,4539.9,4539.8,5.8767402]
[1757987474888,0.57280001,4539.9,4539.8,5.8767402]
[1757987478580,1e-08,4539.9,4539.8,5.8767402]
[1757987479898,0.57520001,4539.9,4539.8,5.8767402]
[1757987480101,0.10140001,4539.9,4539.8,5.8767402]
[1757987480498,0.10140001,4539.9,4539.8,5.8777402]
[1757987480698,0.10340001,4539.9,4539.8,5.8777402]
[1757987480903,0.00200001,4539.9,4539.8,5.8777402]
[1757987482102,0.56980001,4539.9,4539.8,2.2037402]
[1757987482399,0.90320001,4539.9,4539.8,5.8777402]
[1757987482770,0.56980001,4539.9,4539.8,5.8777402]
[1757987484223,0.10570001,4539.9,4539.8,5.8777402]
[1757987484983,0.00200001,4539.9,4539.8,5.8777402]
[1757987485591,0.00200001,4539.9,4539.8,8.00781473]
[1757987486578,0.00200001,4539.9,4539.8,7.70401473]
[1757987486777,0.00200001,4539.9,4539.8,7.25591473]
[1757987486978,0.00200001,4539.9,4539.8,21.75591473]
[1757987487185,0.10100001,4539.9,4539.8,21.26761473]
[1757987488396,0.00200001,4539.9,4539.8,21.26761473]
[1757987488588,0.10100001,4539.9,4539.8,17.59361473]
[1757987488793,0.10100001,4539.9,4539.8,20.3767402]
[1757987488794,0.56510001,4539.9,4539.8,20.3767402]
[1757987488994,0.56510001,4539.9,4539.8,16.7037402]
[1757987489213,0.56510001,4539.9,4539.8,20.3767402]
[1757987489794,0.56510001,4539.9,4539.8,5.8767402]
[1757987491201,0.56510001,4539.9,4539.8,2.2037402]
[1757987491406,0.90320001,4539.9,4539.8,5.8767402]
[1757987493028,0.90320001,4539.9,4539.8,0.001]
[1757987493841,0.90320001,4539.9,4539.8,2.2037402]
[1757987494148,0.90320001,4539.9,4539.8,0.001]
[1757987494698,0.90320001,4539.9,4539.8,2.2037402]
[1757987496222,0.56510001,4539.9,4539.8,2.2037402]
[1757987496619,0.56510001,4539.9,4539.8,0.001]
[1757987496825,0.90320001,4539.9,4539.8,0.001]
[1757987497539,0.90320001,4539.9,4539.8,2.2037402]
[1757987497926,0.56510001,4539.9,4539.8,0.001]
[1757987498439,0.56510001,4539.9,4539.8,2.2037402]
[1757987498803,0.10100001,4539.9,4539.8,2.2037402]
[1757987502434,0.00200001,4539.9,4539.8,2.9958402]
[1757987502620,0.00200001,4539.9,4539.8,3.4439402]
[1757987506319,0.00200001,4539.9,4539.8,22.13078495]
[1757987512089,0.00200001,4539.9,4539.8,17.21758495]
[1757987512248,0.55860001,4539.9,4539.8,5.8767402]
[1757987512579,0.55860001,4539.9,4539.3,0.001]
[1757987512580,0.792,4539.6,4539.3,0.001]
[1757987512745,11.08587543,4539.4,4539.3,0.001]
[1757987512945,20.49255054,4539.4,4539.3,0.001]
[1757987513173,20.64045054,4539.4,4539.3,0.001]
[1757987513374,20.64045054,4539.4,4538.1,0.001]
[1757987513375,11.08611811,4538.9,4538.1,0.001]
[1757987513685,15.56813347,4538.9,4538.1,0.001]
[1757987513886,16.35166679,4538.9,4538.1,0.001]
[1757987514261,16.44003694,4538.9,4538.1,0.001]
[1757987514461,15.96456429,4538.9,4538.1,0.001]
[1757987514645,16.43952584,4538.9,4538.1,0.001]
[1757987515250,15.7579831,4538.9,4538.1,0.001]
[1757987516984,31.90395415,4538.9,4538.1,0.001]
[1757987517182,31.90397443,4538.9,4538.1,0.001]
[1757987517393,31.2237421,4538.9,4538.1,0.001]
[1757987517687,19.7913871,4538.9,4538.3,0.001]
[1757987517886,22.2123471,4538.9,4538.3,0.001]
[1757987518389,21.86671378,4538.9,4538.3,0.001]
[1757987518987,45.41234978,4538.9,4538.3,0.001]
[1757987519760,15.41234978,4538.9,4538.3,0.001]
[1757987520170,45.41234978,4538.9,4538.3,0.001]
[1757987521589,45.75800062,4538.9,4538.3,0.001]
[1757987521989,2.9954197,4538.4,4538.3,0.001]
[1757987522175,2.9954197,4538.4,4538.1,0.001]
[1757987522176,2.99551681,4538.2,4538.1,0.001]
[1757987522377,36.64050092,4538.2,4538.1,0.001]
[1757987522556,37.23649177,4538.2,4538.1,0.001]
[1757987522883,37.67060798,4538.2,4538.1,0.001]
[1757987524495,2.99566248,4537.9,4537.8,0.001]
[1757987524656,44.60474913,4537.9,4537.8,0.001]
[1757987524987,45.50012998,4537.9,4537.8,0.001]
[1757987525184,45.33847208,4537.9,4537.8,0.001]
[1757987525986,46.09254899,4537.9,4537.8,0.001]
[1757987526940,46.09254899,4537.9,4536.8,0.08]
[1757987526941,0.792,4537.7,4536.8,0.08]
[1757987527230,11.0871865,4536.7,4536.6,0.001]
[1757987527378,11.0871865,4536.7,4536.4,0.001]
[1757987527379,2.99634255,4536.5,4536.4,0.001]
[1757987527582,0.792,4536.2,4535.6,0.001]
[1757987527804,45.08132946,4536.2,4535.6,0.001]
[1757987528031,45.20762946,4536.2,4535.6,0.001]
[1757987530093,43.02856273,4536.2,4535.6,0.001]
[1757987530295,39.88110373,4536.2,4535.6,0.001]
[1757987530498,39.73932573,4536.2,4535.6,0.001]
[1757987531217,39.85047327,4536.2,4535.6,0.001]
[1757987531396,43.39731627,4536.2,4535.6,0.001]
[1757987531594,42.12557627,4536.2,4535.6,0.001]
[1757987532382,45.66462827,4536.2,4535.6,0.001]
[1757987532994,7.02785127,4536.2,4536.1,1.2135]
[1757987533299,3.686,4536.2,4536.1,1.2135]
[1757987533495,3.686,4536.2,4536.1,3.53938693]
[1757987533788,4.478,4536.2,4536.1,3.53938693]
[1757987534013,0.792,4536.2,4536.1,3.53938693]
[1757987534210,4.482,4536.2,4536.1,3.53938693]
[1757987534415,3.69,4536.2,4536.1,3.41803693]
[1757987535386,4.482,4536.2,4536.1,3.41803693]
[1757987535582,4.482,4536.2,4536.1,0.7781]
[1757987535837,4.482,4536.2,4536.1,1.2135]
[1757987536216,4.482,4536.2,4536.1,3.41803693]
[1757987536587,7.482,4536.2,4536.1,1.2135]
[1757987537095,7.482,4536.2,4536.1,3.41803693]
[1757987537096,3.792,4536.2,4536.1,3.41803693]
[1757987537301,7.481,4536.2,4536.1,3.41803693]
[1757987538411,7.481,4536.2,4536.1,1.2135]
[1757987539023,7.481,4536.2,4536.1,3.41803693]
[1757987539503,7.481,4536.2,4536.1,1.2135]
[1757987539683,7.481,4536.2,4536.1,3.41803693]
[1757987540420,7.481,4536.2,4536.1,1.2135]
[1757987540984,7.481,4536.2,4536.1,3.41803693]
[1757987542317,7.60430573,4536.2,4536.1,3.41803693]
[1757987542818,7.60430573,4536.2,4536.1,1.2135]
[1757987542986,7.60430573,4536.2,4536.1,0.7781]
[1757987543194,7.60430573,4536.2,4536.1,1.2433]
[1757987544426,7.60430573,4536.2,4536.1,3.44783693]
[1757987545018,7.60430573,4536.2,4536.1,0.4894]
[1757987545188,7.60430573,4536.2,4536.1,0.021]
[1757987545189,8.38294618,4536.2,4536.1,0.021]
[1757987545388,10.93323451,4536.2,4536.1,0.021]
[1757987545624,12.20523957,4536.2,4536.1,0.021]
[1757987545917,11.27905454,4536.2,4536.1,0.021]
[1757987546319,10.93323451,4536.2,4536.1,0.021]
[1757987546707,8.38294618,4536.2,4536.1,0.021]
[1757987547424,10.58743451,4536.2,4536.1,0.021]
[1757987548092,29.50041622,4536.2,4536.1,0.021]
[1757987548292,29.04634051,4536.2,4536.1,0.021]
[1757987548499,2.99673135,4535.7,4535.6,0.001]
[1757987548729,8.27794623,4535.7,4535.6,0.001]
[1757987548926,11.72514623,4535.7,4535.6,0.001]
[1757987549127,11.27794623,4535.7,4535.6,0.001]
[1757987549314,10.48667753,4535.7,4535.6,0.001]
[1757987549818,10.93622932,4535.7,4535.6,0.001]
[1757987550188,11.72781827,4535.7,4535.6,0.001]
[1757987550627,9.52308692,4535.7,4535.6,0.001]
[1757987550822,8.0407491,4535.7,4535.6,0.001]
[1757987551018,11.7267491,4535.7,4535.6,0.001]
[1757987551214,10.93522932,4535.7,4535.6,0.001]
[1757987551414,8.73049797,4535.7,4535.6,0.001]
[1757987551731,10.93522932,4535.7,4535.6,0.001]
[1757987552416,5.04449797,4535.7,4535.6,0.001]
[1757987552614,8.62679797,4535.7,4535.6,0.4585]
[1757987553010,8.62679797,4535.7,4535.6,0.001]
[1757987553405,4.94079797,4535.7,4535.6,0.7586]
[1757987553611,8.62679797,4535.7,4535.6,1.2238]
[1757987553928,8.62679797,4535.7,4535.6,0.7586]
[1757987554502,8.62789413,4535.7,4535.6,0.7586]
[1757987554811,10.83262548,4535.7,4535.6,0.001]
[1757987555829,10.93162548,4535.7,4535.6,0.001]
[1757987556625,10.58577369,4535.7,4535.6,0.001]
[1757987556808,10.58726368,4535.7,4535.6,0.001]
[1757987557509,8.38253233,4535.7,4535.6,0.001]
[1757987558020,10.58726368,4535.7,4535.6,0.001]
[1757987558833,10.58526368,4535.7,4535.6,0.001]
[1757987559032,10.48626368,4535.7,4535.6,0.001]
[1757987559211,8.28153233,4535.7,4535.6,0.4585]
[1757987559531,10.48626368,4535.7,4535.6,0.4585]
[1757987559732,8.28153233,4535.7,4535.6,0.4585]
[1757987559927,10.48626368,4535.7,4535.6,0.001]
[1757987560127,10.58526368,4535.7,4535.6,0.001]
[1757987560732,10.93111338,4535.7,4535.6,0.001]
[1757987562302,11.72343186,4535.7,4535.6,0.001]
[1757987564327,10.93111338,4535.7,4535.6,0.001]
[1757987565262,11.72343186,4535.7,4535.6,0.001]
[1757987565537,10.93111338,4535.7,4535.6,0.001]
[1757987566641,11.27681338,4535.7,4535.6,0.001]
[1757987567004,10.93111338,4535.7,4535.6,0.001]
[1757987567412,11.27681338,4535.7,4535.6,0.001]
[1757987567846,42.06913186,4535.7,4535.6,0.001]
[1757987568142,41.82034484,4535.7,4535.6,0.001]
[1757987568306,41.90878964,4535.7,4535.6,0.001]
[1757987568709,41.57168964,4535.7,4535.6,0.001]
[1757987569123,41.22598964,4535.7,4535.6,0.001]
[1757987570133,39.93925364,4535.7,4535.6,0.001]
[1757987570445,37.83391864,4535.7,4535.6,0.001]